[Event "44th Chess Olympiad Women 2022"]
[Site "Chennai"]
[Date "2022.08.01"]
[Round "4.21"]
[White "Hamza, Amira"]
[Black "Stoeri, Laura"]
[Result "0-1"]
[WhiteElo "1848"]
[BlackElo "2084"]
[Annotator "NA RC"]
[PlyCount "94"]
[EventDate "2022.??.??"]
[TimeControl "60"]

1. d4 {[%emt 0:00:09]} Nf6 {[%emt 0:00:05]} 2. Nf3 {[%emt 0:00:14]} e6 {
[%emt 0:00:06]} 3. g3 {[%emt 0:00:12]} b5 {[%emt 0:00:14]} 4. a4 {[%emt 0:00:
00]} b4 {[%emt 0:01:46]} 5. Bg2 {[%emt 0:00:20]} Bb7 {[%emt 0:00:17]} 6. c4 {
[%emt 0:02:58]} bxc3 {[%emt 0:17:45]} 7. bxc3 {[%emt 0:00:44]} Be7 {[%emt 0:00:
00]} 8. O-O {[%emt 0:02:28]} O-O {[%emt 0:01:53]} 9. Bg5 {[%emt 0:10:04]} d6 {
[%emt 0:10:46]} 10. Nbd2 {[%emt 0:04:35]} Nbd7 {[%emt 0:00:24]} 11. Qc2 {
[%emt 0:04:37]} c5 {[%emt 0:06:35]} 12. Rfc1 {[%emt 0:28:00]} Rc8 {[%emt 0:00:
00]} 13. Qd1 {[%emt 0:01:23]} h6 {[%emt 0:01:09]} 14. Bxf6 {[%emt 0:02:08]}
Nxf6 {[%emt 0:01:27]} 15. Nc4 {[%emt 0:00:54]} Ba6 {[%emt 0:05:52]} 16. Nfd2 {
[%emt 0:01:06]} Rc7 {[%emt 0:23:54]} 17. Rab1 {[%emt 0:02:37]} Qc8 {[%emt 0:00:
00]} 18. Na3 {[%emt 0:01:51]} Rd8 {[%emt 0:01:30]} 19. Nb5 {[%emt 0:02:27]}
Rcd7 {[%emt 0:00:04]} 20. Nc4 {[%emt 0:03:00]} Nd5 {[%emt 0:06:40]} 21. Na5 {
[%emt 0:01:21]} Re8 {[%emt 0:05:46]} 22. e4 {[%emt 0:02:41]} Bd8 {[%emt 0:00:
00]} 23. Nc4 {[%emt 0:04:04]} Bxb5 {[%emt 0:00:29]} 24. axb5 {[%emt 0:00:23]}
Nb6 {[%emt 0:01:07]} 25. Na5 {[%emt 0:00:29]} d5 {[%emt 0:01:14]} 26. e5 {
[%emt 0:03:12]} Na8 {[%emt 0:05:19]} 27. Nc6 {[%emt 0:04:03]} Bb6 {[%emt 0:00:
00]} 28. Qg4 {[%emt 0:03:00]} Nc7 {[%emt 0:00:56]} 29. dxc5 {[%emt 0:05:30]}
Bxc5 {[%emt 0:00:06]} 30. Qa4 {[%emt 0:00:19]} Qb7 {[%emt 0:00:51]} 31. b6 {
[%emt 0:01:32]} axb6 {[%emt 0:00:54]} 32. Nb8 {[%emt 0:00:44]} Rdd8 {[%emt 0:
00:00]} 33. Nc6 {[%emt 0:01:20]} Ra8 {[%emt 0:00:25]} 34. Na5 {[%emt 0:06:07]}
Qc8 {[%emt 0:00:16]} 35. Qc2 {[%emt 0:01:56]} Rxa5 {[%emt 0:00:10]} 36. Qd3 {
[%emt 0:00:34]} Qa6 {[%emt 0:00:39]} 37. Qf3 {[%emt 0:00:10]} Ra2 {[%emt 0:00:
00]} 38. Bf1 {[%emt 0:00:15]} Qa4 {[%emt 0:01:00]} 39. Be2 {[%emt 0:00:27]} Qe4
{[%emt 0:00:43]} 40. Qxe4 {[%emt 0:00:32]} dxe4 {[%emt 0:00:02]} 41. Kf1 {
[%emt 0:30:50]} Nd5 {[%emt 0:02:25]} 42. c4 {[%emt 0:00:00]} Nb4 {[%emt 0:00:
00]} 43. Rd1 {[%emt 0:00:00]} Nd3 {[%emt 0:01:31]} 44. Bxd3 {[%emt 0:00:00]}
Rxf2+ {[%emt 0:00:35]} 45. Ke1 {[%emt 0:00:00]} exd3 {[%emt 0:00:09]} 46. Rxd3
{[%emt 0:00:00]} Rxh2 {[%emt 0:00:14]} 47. Rbb3 {[%emt 0:00:00]} Ra8 {[%emt 0:
00:00]} 0-1

[Event "44th Chess Olympiad Women 2022"]
[Site "Chennai"]
[Date "2022.08.01"]
[Round "4.21"]
[White "Heinatz, Gundula"]
[Black "Nassr, Rania"]
[Result "0-1"]
[WhiteElo "2196"]
[BlackElo "1737"]
[Annotator "NA RC"]
[PlyCount "66"]
[EventDate "2022.??.??"]
[TimeControl "60"]

1. d4 {[%emt 0:00:05]} Nf6 {[%emt 0:00:16]} 2. c4 {[%emt 0:00:12]} e6 {[%emt 0:
00:00]} 3. g3 {[%emt 0:00:12]} d5 {[%emt 0:00:54]} 4. Bg2 {[%emt 0:00:18]} Be7
{[%emt 0:01:59]} 5. Nf3 {[%emt 0:00:34]} O-O {[%emt 0:00:49]} 6. O-O {[%emt 0:
00:00]} b6 {[%emt 0:02:17]} 7. Nc3 {[%emt 0:01:36]} Bb7 {[%emt 0:02:22]} 8. Ne5
{[%emt 0:02:40]} Nbd7 {[%emt 0:10:39]} 9. Re1 {[%emt 0:19:35]} c5 {[%emt 0:00:
00]} 10. e3 {[%emt 0:00:39]} Qc8 {[%emt 0:07:26]} 11. cxd5 {[%emt 0:07:02]}
Nxd5 {[%emt 0:03:55]} 12. Nxd5 {[%emt 0:03:10]} Bxd5 {[%emt 0:03:55]} 13. e4 {
[%emt 0:08:06]} Bb7 {[%emt 0:04:01]} 14. Nxd7 {[%emt 0:04:50]} Qxd7 {[%emt 0:
00:00]} 15. d5 {[%emt 0:01:20]} exd5 {[%emt 0:00:58]} 16. exd5 {[%emt 0:00:10]}
Bf6 {[%emt 0:03:55]} 17. Qh5 {[%emt 0:04:45]} Rad8 {[%emt 0:08:25]} 18. Bg5 {
[%emt 0:12:08]} g6 {[%emt 0:03:59]} 19. Qh4 {[%emt 0:00:18]} Bxg5 {[%emt 0:00:
00]} 20. Qxg5 {[%emt 0:00:07]} f6 {[%emt 0:01:07]} 21. Qh4 {[%emt 0:05:18]}
Bxd5 {[%emt 0:05:30]} 22. Rad1 {[%emt 0:00:48]} Qf7 {[%emt 0:01:52]} 23. Qa4 {
[%emt 0:05:17]} Bxa2 {[%emt 0:07:50]} 24. Ra1 {[%emt 0:06:44]} Bb3 {[%emt 0:00:
00]} 25. Qf4 {[%emt 0:02:11]} Rd4 {[%emt 0:03:01]} 26. Qe3 {[%emt 0:00:10]} a5
{[%emt 0:01:44]} 27. h4 {[%emt 0:00:20]} f5 {[%emt 0:01:33]} 28. h5 {[%emt 0:
00:00]} f4 {[%emt 0:01:05]} 29. gxf4 {[%emt 0:07:01]} Rxf4 {[%emt 0:00:27]} 30.
Ra3 {[%emt 0:03:47]} a4 {[%emt 0:02:03]} 31. hxg6 {[%emt 0:03:35]} Qxg6 {
[%emt 0:00:49]} 32. Re2 {[%emt 0:01:39]} Rd4 {[%emt 0:02:56]} 33. Ra1 {[%emt 0:
00:00]} Bd1 {[%emt 0:02:09]} 0-1

[Event "44th Chess Olympiad Women 2022"]
[Site "Chennai"]
[Date "2022.08.01"]
[Round "4.21"]
[White "Nassr, Lina"]
[Black "Hakimifard, Ghazal"]
[Result "0-1"]
[WhiteElo "2011"]
[BlackElo "2296"]
[Annotator "TA"]
[PlyCount "130"]
[EventDate "2022.??.??"]
[TimeControl "60"]

{[%evp 16,130,8,0,0,-12,9,0,9,10,13,9,21,12,11,0,0,0,51,-31,-40,-31,-25,-18,
-20,-23,-30,-31,-8,-67,-66,-68,-45,-29,-37,-98,-104,-104,-64,-95,-90,-90,-91,
-139,-143,-142,-142,-142,-139,-137,-137,-151,-143,-143,-143,-149,-149,-156,
-149,-145,-146,-141,-139,-217,-175,-191,-191,-217,-146,-175,-202,-204,-202,
-200,-126,-189,-137,-154,-133,-154,-112,-114,-116,-116,-91,-495,-495,-495,-489,
-480,-467,-549,-808,-1684,-1613,-29981,-29982,-29982,-29983,-29980,-29981,
-29981,-29982,-29982,-29983,-29983,-29984,-29984,-29985,-29985,-29986,-29990,
-29991,-29991,-29992,-29992,-29993]} 1. d4 {[%emt 0:00:09]} Nf6 {[%emt 0:00:08]
} 2. Nf3 {[%emt 0:00:06]} e6 {[%emt 0:00:06]} 3. e3 {[%emt 0:00:08]} b6 {
[%emt 0:00:07]} 4. Bd3 {[%emt 0:00:13]} Bb7 {[%emt 0:00:05]} 5. b3 {[%emt 0:00:
00]} d5 {[%emt 0:00:11]} 6. Bb2 {[%emt 0:00:17]} Bd6 {[%emt 0:00:07]} 7. Nbd2 {
[%emt 0:00:08]} O-O {[%emt 0:00:17] The main line 7...0-0 scores better than 7.
..Nbd7.} 8. O-O {[%emt 0:00:23]} c5 {[%emt 0:00:15]} 9. Qe2 {[%emt 0:09:06]}
Nc6 {[%emt 0:03:40] D05: Colle System with ...e6.} 10. a3 {[%emt 0:00:16]} Rc8
{[%emt 0:06:01]} 11. Rfd1 {[%emt 0:08:02]} cxd4 {[%emt 0:08:27] The position
is equal.} 12. exd4 {[%emt 0:00:27]} Ne7 {[%emt 0:01:47]} 13. Ne5 {[%emt 0:00:
00]} Ng6 {[%emt 0:02:16]} 14. Nxg6 {[%emt 0:16:50]} hxg6 {[%emt 0:00:22]} 15.
Nf3 {[%emt 0:01:43]} Ne4 {[%emt 0:10:46] [#]} 16. c4 $146 {[%emt 0:06:08]} ({
Predecessor:} 16. Re1 Rc7 17. Ne5 Bxe5 18. dxe5 Nc5 19. Rad1 Qh4 20. Qe3 Nxd3
21. Qxd3 Rfc8 22. Rd2 Qg5 23. Ree2 Qf5 {½-½ (23) Cori Tello,D (2430)-Leitao,
R (2618) Manaus 2013}) 16... Qe7 {[%emt 0:03:56]} (16... a5 $11) 17. Bxe4 {
[%emt 0:13:21]} (17. b4 $1 $14) 17... dxe4 $15 {[%emt 0:00:06]} 18. Ne5 {
[%emt 0:00:24]} Qg5 {[%emt 0:10:15]} 19. Bc1 {[%emt 0:10:24]} Qh5 {[%emt 0:00:
00]} 20. Qxh5 {[%emt 0:15:48]} gxh5 {[%emt 0:00:02]} 21. Be3 {[%emt 0:02:44]}
Rfd8 {[%emt 0:08:21]} 22. b4 {[%emt 0:03:28]} (22. h4 $11) 22... f6 {[%emt 0:
00:00]} 23. c5 {[%emt 0:00:45]} Bb8 {[%emt 0:06:49]} ({Don't play} 23... fxe5
$6 24. cxd6 exd4 25. Rxd4 $11) 24. Nc4 {[%emt 0:01:20]} Bd5 $36 {[%emt 0:01:28]
Black is pushing.} 25. Nd6 {[%emt 0:02:33]} (25. Rdc1 $15) 25... Bxd6 $17 {
[%emt 0:01:52]} 26. cxd6 {[%emt 0:00:01]} b5 {[%emt 0:03:47]} 27. Rac1 {
[%emt 0:01:54]} Bc4 {[%emt 0:06:44]} 28. h4 {[%emt 0:01:53]} Rxd6 {[%emt 0:00:
14]} 29. g3 {[%emt 0:00:51]} (29. Rc3 $142) 29... Rcd8 {[%emt 0:00:00]} 30. Re1
{[%emt 0:00:08]} Ra6 {[%emt 0:00:18]} 31. Rc3 {[%emt 0:00:58]} Kf7 {[%emt 0:00:
35]} 32. Ra1 {[%emt 0:00:06]} Ra4 {[%emt 0:01:17] Black is more active.} 33.
Re1 {[%emt 0:00:43]} a5 {[%emt 0:05:44]} 34. bxa5 {[%emt 0:00:23]} Rxa5 {
[%emt 0:00:14]} 35. Kg2 {[%emt 0:00:48]} Ra4 {[%emt 0:02:03]} 36. Kg1 {[%emt 0:
00:31]} Ke7 {[%emt 0:02:37]} 37. Kg2 {[%emt 0:00:27]} Rda8 {[%emt 0:00:00]} 38.
Bc1 {[%emt 0:00:09]} Kd6 {[%emt 0:01:59]} 39. Rce3 {[%emt 0:00:28]} (39. Kh2
$17) 39... Bd5 {[%emt 0:00:51]} 40. Bb2 {[%emt 0:00:36]} Rc4 {[%emt 0:00:00]}
41. Kg1 {[%emt 0:09:50]} Rc2 {[%emt 0:02:05]} 42. R1e2 {[%emt 0:04:43]} Rac8 {
[%emt 0:01:01]} 43. Kh2 {[%emt 0:03:22]} R8c4 {[%emt 0:05:07]} 44. Kg1 {
[%emt 0:03:13]} Bc6 {[%emt 0:00:46]} 45. Kh2 {[%emt 0:06:47]} (45. Kf1 $17 {
was worth a try.}) 45... Kd5 {[%emt 0:00:44]} (45... f5 $19 46. Kg1 Bd5) 46.
Kg1 {[%emt 0:01:20]} Be8 {[%emt 0:02:58]} 47. Kg2 {[%emt 0:00:50]} Bg6 {
[%emt 0:01:54] And now ...Rxe2 would win.} 48. Kf1 {[%emt 0:01:30]} Rxe2 {
[%emt 0:03:40]} 49. Rxe2 {[%emt 0:00:04] Endgame KRB-KRB} Bf5 {[%emt 0:00:16] .
..Bh3+ is the strong threat.} 50. Rd2 $2 {[%emt 0:01:31] Now White is beyond
hope.} (50. Re3 $17 {was the crucial defense.}) 50... Bg4 $19 {[%emt 0:00:35]}
51. Kg1 {[%emt 0:01:32]} Bf3 {[%emt 0:00:22]} 52. Kf1 {[%emt 0:01:03]} g5 {
[%emt 0:01:03]} 53. Kg1 {[%emt 0:01:04]} gxh4 {[%emt 0:00:00][%cal Ye4e3] [#]
Strongly threatening ...e3!} 54. gxh4 {[%emt 0:00:00]} f5 {[%emt 0:00:12]} 55.
Kh2 {[%emt 0:00:46]} f4 {[%emt 0:00:08] Black mates.} 56. Kg1 {[%emt 0:00:48]}
e3 {[%emt 0:01:57]} 57. fxe3 {[%emt 0:00:06]} fxe3 {[%emt 0:00:02]} 58. Rh2 {
[%emt 0:00:47]} e2 {[%emt 0:01:56][%cal Re2e1]} 59. Kf2 {[%emt 0:00:06]} Rc2 {
[%emt 0:00:29]} 60. Rh3 {[%emt 0:00:26] [#]} Ke4 $1 {[%emt 0:00:53]} 61. Rxf3 {
[%emt 0:01:02]} e1=Q+ {[%emt 0:00:25] Deflection} 62. Kxe1 {[%emt 0:00:06]}
Kxf3 {[%emt 0:00:02]} 63. d5 {[%emt 0:00:00]} Rxb2 {[%emt 0:00:30]} 64. d6 {
[%emt 0:00:15]} Ke3 {[%emt 0:00:14][%cal Rb2b1]} 65. Kd1 {[%emt 0:00:27]} Rd2+
{[%emt 0:00:15] Weighted Error Value: White=0.47/Black=0.10 (very precise)} 0-1

[Event "44th Chess Olympiad Women 2022"]
[Site "Chennai"]
[Date "2022.08.01"]
[Round "4.22"]
[White "Cori T., Deysi"]
[Black "Hernandez Alvarez, Tania Regla"]
[Result "1-0"]
[WhiteElo "2371"]
[BlackElo "2058"]
[Annotator "TA"]
[PlyCount "55"]
[EventDate "2022.??.??"]
[TimeControl "60"]

{[%evp 9,55,11,4,0,0,0,-7,-3,0,0,0,-45,-24,-47,-47,-35,6,-30,3,0,19,13,23,40,
43,39,40,40,72,12,93,88,146,145,177,179,446,457,747,757,1058,1075,1537,1532,
1466,1452,1376,892]} 1. Nf3 {[%emt 0:00:11]} Nf6 {[%emt 0:00:08]} 2. d4 {
[%emt 0:00:37]} d5 {[%emt 0:00:20]} 3. g3 {[%emt 0:01:22]} e6 {[%emt 0:00:20]}
4. Bg2 {[%emt 0:00:22]} Be7 {[%emt 0:00:23]} 5. O-O {[%emt 0:00:16]} O-O {
[%emt 0:00:11]} 6. Ne5 {[%emt 0:08:42] D02:1 d4 d5 2 Nf3 sidelines, including
2...Nf6 3 g3 and 2...Nf6 3 Bf4.} Nbd7 {[%emt 0:02:36]} 7. c4 {[%emt 0:00:18]}
c6 {[%emt 0:01:38]} 8. Nd2 {[%emt 0:10:20] The position is equal.} Nxe5 {
[%emt 0:08:03]} 9. dxe5 {[%emt 0:00:02]} Nd7 {[%emt 0:00:10]} 10. Nf3 {[%emt 0:
00:00] [#]} dxc4 $146 {[%emt 0:05:30]} ({Predecessor:} 10... Nb6 11. cxd5 exd5
{½-½ (11) Kosten,A (2519)-Horvath,C (2565) Izmir 2004}) 11. Qc2 {[%emt 0:00:
00]} Qc7 $1 {[%emt 0:01:17]} 12. Qe4 {[%emt 0:06:23]} c5 {[%emt 0:17:41]} 13.
a4 {[%emt 0:04:23]} a5 {[%emt 0:06:41]} 14. Rd1 {[%emt 0:05:16]} Nb6 {[%emt 0:
00:00]} 15. Bg5 {[%emt 0:08:18]} h6 {[%emt 0:03:30]} 16. Bxe7 {[%emt 0:01:23]}
Qxe7 {[%emt 0:00:02]} 17. Rd6 {[%emt 0:07:20]} Qc7 {[%emt 0:01:29]} 18. Nd2 {
[%emt 0:01:24]} Ra6 {[%emt 0:08:20]} 19. Qh4 {[%emt 0:17:30] White is much
more active. The black rooks are badly placed.} (19. f4 $16) 19... f5 {[%emt 0:
00:00] [#]} (19... Bd7 $11 {remains equal.}) 20. e4 $1 $16 {[%emt 0:03:54]} Bd7
{[%emt 0:12:54]} (20... Qf7 $142) 21. exf5 {[%emt 0:02:26]} Rxf5 {[%emt 0:00:
00] [#]} 22. Bh3 $1 {[%emt 0:00:50]} ({Inferior is} 22. Nxc4 g5 23. Qe4 (23.
Qxh6 Nxc4 24. Qg6+ Kf8 $11) 23... Nxc4 24. Rxa6 (24. Qxc4 Rxd6 25. exd6 Qxd6
$11) 24... bxa6 $11) 22... Rxe5 {[%emt 0:11:39]} (22... Rf7 23. Bxe6 Bxe6 24.
Rxe6 Rf8) 23. Qe7 $18 {[%emt 0:00:05][%cal Yd2c4] And now Nxc4! would win.
White is clearly winning.} Qc8 {[%emt 0:04:43] [#]} (23... Kh7 $142 24. Bg2 (
24. Bxe6 $2 Rxe6 25. Rxe6 Nc8 $19) 24... Qb8) 24. Nxc4 $1 {[%emt 0:01:02]
Deflection} Nxc4 {[%emt 0:00:25]} (24... Nd5 25. Qxd7) 25. Rxd7 {[%emt 0:00:00]
[%csl Gd7][%cal Re7g7]} Qf8 {[%emt 0:00:37]} 26. Rd8 {[%emt 0:00:08]} Qxd8 {
[%emt 0:02:09]} 27. Qxd8+ {[%emt 0:00:04]} Kh7 {[%emt 0:00:07]} 28. Qd1 {
[%emt 0:01:26] Weighted Error Value: White=0.10 (very precise) /Black=0.38} 1-0

[Event "44th Chess Olympiad Women 2022"]
[Site "Chennai"]
[Date "2022.08.01"]
[Round "4.22"]
[White "Diaz Charpentier, Kristel Meliss"]
[Black "Caballero Quijano, Mitzy Mishell"]
[Result "1/2-1/2"]
[WhiteElo "1989"]
[BlackElo "2035"]
[Annotator "NA RC"]
[PlyCount "122"]
[EventDate "2022.??.??"]
[TimeControl "60"]

1. Nf3 {[%emt 0:00:18]} d5 {[%emt 0:00:07]} 2. c4 {[%emt 0:00:04]} c6 {[%emt 0:
00:00]} 3. g3 {[%emt 0:00:03]} Nf6 {[%emt 0:00:06]} 4. b3 {[%emt 0:00:05]} Bg4
{[%emt 0:00:06]} 5. Bg2 {[%emt 0:00:07]} Nbd7 {[%emt 0:00:08]} 6. Bb2 {[%emt 0:
00:00]} e6 {[%emt 0:00:05]} 7. O-O {[%emt 0:00:07]} Bd6 {[%emt 0:00:05]} 8. d3
{[%emt 0:00:19]} O-O {[%emt 0:00:11]} 9. Nbd2 {[%emt 0:00:18]} a5 {[%emt 0:00:
00]} 10. a3 {[%emt 0:06:26]} b5 {[%emt 0:01:10]} 11. Qc2 {[%emt 0:00:49]} Rc8 {
[%emt 0:13:36]} 12. h3 {[%emt 0:03:31]} Bh5 {[%emt 0:00:41]} 13. e4 {[%emt 0:
00:00]} dxe4 {[%emt 0:00:51]} 14. dxe4 {[%emt 0:00:06]} e5 {[%emt 0:00:28]} 15.
Rad1 {[%emt 0:03:41]} Qe7 {[%emt 0:00:28]} 16. a4 {[%emt 0:04:05]} bxa4 {
[%emt 0:08:20]} 17. bxa4 {[%emt 0:00:05]} Ne8 {[%emt 0:02:29]} 18. Nb3 {
[%emt 0:07:58]} Ra8 {[%emt 0:01:39]} 19. g4 {[%emt 0:10:15]} Bg6 {[%emt 0:00:
00]} 20. c5 {[%emt 0:00:07]} Bc7 {[%emt 0:03:29]} 21. Rxd7 {[%emt 0:06:25]}
Qxd7 {[%emt 0:00:14]} 22. Nxe5 {[%emt 0:00:14]} Bxe5 {[%emt 0:00:38]} 23. Bxe5
{[%emt 0:00:03]} f6 {[%emt 0:01:54]} 24. Bc3 {[%emt 0:00:41]} Nc7 {[%emt 0:00:
00]} 25. Nxa5 {[%emt 0:05:25]} Ne6 {[%emt 0:01:26]} 26. Nc4 {[%emt 0:07:16]}
Qe7 {[%emt 0:04:27]} 27. Nb6 {[%emt 0:00:50]} Qxc5 {[%emt 0:23:06]} 28. Nxa8 {
[%emt 0:01:49]} Rxa8 {[%emt 0:00:12]} 29. Rc1 {[%emt 0:05:15]} Nf4 {[%emt 0:00:
00]} 30. Bf1 {[%emt 0:04:03]} Re8 {[%emt 0:03:27]} 31. Bd2 {[%emt 0:10:21]}
Qxc2 {[%emt 0:02:27]} 32. Rxc2 {[%emt 0:02:34]} Bxe4 {[%emt 0:00:06]} 33. Rc4 {
[%emt 0:00:46]} Ng6 {[%emt 0:00:14]} 34. Bg2 {[%emt 0:02:02]} Bxg2 {[%emt 0:00:
00]} 35. Kxg2 {[%emt 0:00:02]} Re2 {[%emt 0:01:27]} 36. Be3 {[%emt 0:02:05]}
Ne5 {[%emt 0:00:24]} 37. Re4 {[%emt 0:02:44]} Ra2 {[%emt 0:00:17]} 38. g5 {
[%emt 0:02:21]} Kf7 {[%emt 0:00:22]} 39. gxf6 {[%emt 0:00:28]} gxf6 {[%emt 0:
00:00]} 40. Kg3 {[%emt 0:01:02]} Kg6 {[%emt 0:02:32]} 41. Bb6 {[%emt 0:33:23]}
Ra3+ {[%emt 0:30:37]} 42. Kg2 {[%emt 0:00:43]} Kf5 {[%emt 0:01:15]} 43. Rb4 {
[%emt 0:02:08]} Nd3 {[%emt 0:01:22]} 44. Rh4 {[%emt 0:01:14]} Nf4+ {[%emt 0:00:
00]} 45. Kh2 {[%emt 0:00:11]} h5 {[%emt 0:06:12]} 46. Be3 {[%emt 0:00:15]} Rxa4
{[%emt 0:02:14]} 47. Bxf4 {[%emt 0:00:15]} Rxf4 {[%emt 0:00:05]} 48. Rxh5+ {
[%emt 0:00:07]} Ke6 {[%emt 0:01:09]} 49. Rc5 {[%emt 0:08:13]} Kd6 {[%emt 0:00:
00]} 50. Kg3 {[%emt 0:00:00]} Kxc5 {[%emt 0:00:00]} 51. Kxf4 {[%emt 0:00:00]}
Kd4 {[%emt 0:00:00]} 52. h4 {[%emt 0:00:00]} c5 {[%emt 0:00:00]} 53. h5 {
[%emt 0:00:00]} c4 {[%emt 0:00:00]} 54. h6 {[%emt 0:00:00]} c3 {[%emt 0:00:00]}
55. h7 {[%emt 0:00:00]} c2 {[%emt 0:00:00]} 56. h8=Q {[%emt 0:00:00]} c1=Q+ {
[%emt 0:00:00]} 57. Kf3 {[%emt 0:00:00]} Qd1+ {[%emt 0:00:00]} 58. Kg3 {
[%emt 0:00:00]} Qg1+ {[%emt 0:00:00]} 59. Kf3 {[%emt 0:00:00]} Qd1+ {[%emt 0:
00:00]} 60. Kg3 {[%emt 0:00:00]} Qg1+ {[%emt 0:00:00]} 61. Kf3 {[%emt 0:00:00]}
Ke5 {[%emt 0:00:42]} 1/2-1/2

[Event "44th Chess Olympiad Women 2022"]
[Site "Chennai"]
[Date "2022.08.01"]
[Round "4.22"]
[White "Paredes Bustamante, Paula Elizab"]
[Black "Mayorga Araya, Sofia"]
[Result "1-0"]
[WhiteElo "2162"]
[BlackElo "1758"]
[Annotator "NA RC"]
[PlyCount "73"]
[EventDate "2022.??.??"]
[TimeControl "60"]

1. e4 {[%emt 0:00:02]} c5 {[%emt 0:00:04]} 2. Nf3 {[%emt 0:00:09]} d6 {[%emt 0:
00:00]} 3. d4 {[%emt 0:00:02]} cxd4 {[%emt 0:00:07]} 4. Nxd4 {[%emt 0:00:01]}
Nf6 {[%emt 0:00:10]} 5. Nc3 {[%emt 0:00:02]} a6 {[%emt 0:00:04]} 6. h3 {
[%emt 0:00:02]} e5 {[%emt 0:00:37]} 7. Nde2 {[%emt 0:00:02]} Be7 {[%emt 0:00:
00]} 8. g4 {[%emt 0:00:02]} Nc6 {[%emt 0:02:49]} 9. Be3 {[%emt 0:00:19]} h6 {
[%emt 0:07:53]} 10. Qd2 {[%emt 0:02:22]} b5 {[%emt 0:01:12]} 11. O-O-O {
[%emt 0:02:09]} Bb7 {[%emt 0:05:05]} 12. Ng3 {[%emt 0:04:58]} b4 {[%emt 0:00:
00]} 13. Nd5 {[%emt 0:08:48]} Nxd5 {[%emt 0:02:57]} 14. exd5 {[%emt 0:00:03]}
b3 {[%emt 0:01:38]} 15. axb3 {[%emt 0:00:50]} Nb8 {[%emt 0:02:05]} 16. Nf5 {
[%emt 0:01:53]} Bf8 {[%emt 0:02:51]} 17. Qb4 {[%emt 0:05:33]} Qd7 {[%emt 0:00:
00]} 18. f4 {[%emt 0:04:56]} g6 {[%emt 0:04:43]} 19. Ng3 {[%emt 0:00:17]} Bg7 {
[%emt 0:00:45]} 20. Ne4 {[%emt 0:00:35]} O-O {[%emt 0:07:56]} 21. Nxd6 {
[%emt 0:01:54]} Bc8 {[%emt 0:00:46]} 22. fxe5 {[%emt 0:00:06]} Bxe5 {[%emt 0:
00:00]} 23. Nc4 {[%emt 0:00:06]} Bc7 {[%emt 0:02:02]} 24. Bxh6 {[%emt 0:00:17]}
Re8 {[%emt 0:01:14]} 25. Qc3 {[%emt 0:01:22]} f5 {[%emt 0:04:31]} 26. d6 {
[%emt 0:09:35]} Bd8 {[%emt 0:01:31]} 27. Bg2 {[%emt 0:00:04]} Ra7 {[%emt 0:00:
00]} 28. Ne5 {[%emt 0:09:08]} Qh7 {[%emt 0:07:14]} 29. Be3 {[%emt 0:01:00]} Bf6
{[%emt 0:03:09]} 30. Bd5+ {[%emt 0:02:07]} Kh8 {[%emt 0:01:32]} 31. Bxa7 {
[%emt 0:03:01]} Qxa7 {[%emt 0:01:48]} 32. Rhe1 {[%emt 0:01:05]} Qg7 {[%emt 0:
00:00]} 33. Nf7+ {[%emt 0:06:37]} Kh7 {[%emt 0:00:20]} 34. Qg3 {[%emt 0:00:27]}
Rf8 {[%emt 0:06:04]} 35. g5 {[%emt 0:00:29]} Bxb2+ {[%emt 0:00:28]} 36. Kb1 {
[%emt 0:00:02]} Rxf7 {[%emt 0:00:23]} 37. Re8 {[%emt 0:01:33]} 1-0

[Event "44th Chess Olympiad Women 2022"]
[Site "Chennai"]
[Date "2022.08.01"]
[Round "4.22"]
[White "Ramirez Gonzalez, Maria Jose"]
[Black "Bravo Mallco, Kate Azumi"]
[Result "0-1"]
[WhiteElo "1809"]
[BlackElo "1958"]
[Annotator "NA RC"]
[PlyCount "78"]
[EventDate "2022.??.??"]
[TimeControl "60"]

1. d4 {[%emt 0:00:03]} Nf6 {[%emt 0:00:28]} 2. c4 {[%emt 0:00:03]} g6 {[%emt 0:
00:00]} 3. f3 {[%emt 0:00:16]} c5 {[%emt 0:02:51]} 4. d5 {[%emt 0:00:26]} d6 {
[%emt 0:00:07]} 5. e4 {[%emt 0:00:16]} e6 {[%emt 0:05:11]} 6. Be3 {[%emt 0:00:
00]} exd5 {[%emt 0:00:10]} 7. cxd5 {[%emt 0:00:00]} Bg7 {[%emt 0:03:56]} 8. Qd2
{[%emt 0:01:15]} O-O {[%emt 0:03:17]} 9. Nc3 {[%emt 0:06:20]} Ne8 {[%emt 0:00:
00]} 10. Bd3 {[%emt 0:02:20]} f5 {[%emt 0:03:13]} 11. exf5 {[%emt 0:03:34]}
Bxf5 {[%emt 0:00:09]} 12. Nge2 {[%emt 0:02:50]} Nd7 {[%emt 0:05:38]} 13. Bxf5 {
[%emt 0:05:38]} Rxf5 {[%emt 0:00:03]} 14. Rc1 {[%emt 0:13:52]} Ne5 {[%emt 0:00:
00]} 15. Qc2 {[%emt 0:09:52]} Nc7 {[%emt 0:00:00]} 16. O-O {[%emt 0:04:36]} b5
{[%emt 0:00:00]} 17. Rcd1 {[%emt 0:03:21]} Qf8 {[%emt 0:07:03]} 18. b3 {
[%emt 0:05:34]} Re8 {[%emt 0:01:29]} 19. Ne4 {[%emt 0:01:36]} Nd7 {[%emt 0:00:
00]} 20. N2g3 {[%emt 0:11:10]} Rxd5 {[%emt 0:04:01]} 21. Rxd5 {[%emt 0:02:26]}
Nxd5 {[%emt 0:00:02]} 22. Bf2 {[%emt 0:01:11]} Be5 {[%emt 0:17:35]} 23. Rd1 {
[%emt 0:02:58]} Nf4 {[%emt 0:03:42]} 24. b4 {[%emt 0:01:23]} c4 {[%emt 0:04:29]
} 25. Bxa7 {[%emt 0:06:09]} d5 {[%emt 0:04:37]} 26. Bc5 {[%emt 0:03:21]} Nxc5 {
[%emt 0:00:45]} 27. Nxc5 {[%emt 0:00:08]} Qg7 {[%emt 0:00:29]} 28. a4 {[%emt 0:
00:00]} Bd4+ {[%emt 0:00:52]} 29. Kf1 {[%emt 0:00:24]} Bxc5 {[%emt 0:00:16]}
30. bxc5 {[%emt 0:00:08]} b4 {[%emt 0:00:14]} 31. Qd2 {[%emt 0:00:38]} Nd3 {
[%emt 0:00:07]} 32. Ne2 {[%emt 0:00:47]} b3 {[%emt 0:03:41]} 33. Nf4 {[%emt 0:
00:00]} Nxf4 {[%emt 0:00:41]} 34. Qxf4 {[%emt 0:00:02]} Qe5 {[%emt 0:01:41]}
35. Qxe5 {[%emt 0:00:58]} Rxe5 {[%emt 0:00:02]} 36. c6 {[%emt 0:01:15]} b2 {
[%emt 0:00:49]} 37. c7 {[%emt 0:00:18]} Re8 {[%emt 0:00:02]} 38. Rxd5 {[%emt 0:
00:00]} b1=Q+ {[%emt 0:00:10]} 39. Kf2 {[%emt 0:00:08]} Qe1# {[%emt 0:00:06]}
0-1